bitfinex/quotes_ETHUSD_20250424
["timestamp","ask_amount","ask_price","bid_price","bid_amount"]
[1745480579999,1.42541706,1757.2,1756.9,0.12196425]
[1745480580365,5.8261,1757.4,1756.9,0.12196425]
[1745480581601,11.51637161,1757.4,1756.9,0.12196425]
[1745480581959,0.7527,1757.6,1757.2,0.74616314]
[1745480582160,5.053,1757.5,1757.3,0.12254982]
[1745480582397,6.20252967,1757.5,1757.3,0.12254982]
[1745480582776,6.20252967,1757.5,1757.0,1.51976314]
[1745480582961,6.20252967,1757.5,1757.1,0.12225703]
[1745480583168,6.47783975,1757.4,1757.1,0.12225703]
[1745480583388,0.7876,1757.4,1756.8,7.26677812]
[1745480583597,2.65608509,1757.4,1756.9,0.12225703]
[1745480583897,8.34648177,1757.4,1756.9,0.12225703]
[1745480585100,2.65608509,1757.4,1756.9,0.12225703]
[1745480585599,8.34631006,1757.4,1756.9,0.12225703]
[1745480585805,5.69058282,1757.3,1756.9,0.12225703]
[1745480586102,6.44849947,1756.9,1756.4,1.50116314]
[1745480586304,5.053,1756.8,1756.5,0.12225703]
[1745480586474,5.053,1756.8,1756.5,0.86842017]
[1745480586836,0.8067,1757.1,1756.7,0.74616314]
[1745480587000,0.8067,1757.1,1756.7,1.51656314]
[1745480587001,5.053,1756.9,1756.7,1.51656314]
[1745480587295,5.053,1756.9,1756.7,0.74616314]
[1745480587499,5.053,1756.9,1756.8,0.12225703]
[1745480587900,5.5583,1756.9,1756.5,1.54266314]
[1745480588059,0.7757,1756.8,1756.5,0.74616314]
[1745480588260,0.7757,1756.8,1756.6,0.12348694]
[1745480589466,5.6924916,1756.7,1756.6,0.12348694]
[1745480589667,6.5090916,1756.7,1756.6,0.12348694]
[1745480589970,6.5090916,1756.7,1756.1,0.79616314]
[1745480590303,7.72923234,1756.7,1756.2,0.12565404]
[1745480590508,5.6923158,1756.8,1756.3,1.56166314]
[1745480590509,0.8068,1756.8,1756.3,1.56166314]
[1745480590732,5.054,1756.8,1756.6,0.8097]
[1745480591035,5.054,1756.8,1756.5,1.55586314]
[1745480591189,5.054,1756.8,1756.7,0.12682582]
[1745480591390,5.054,1756.8,1756.5,1.55586314]
[1745480591591,5.054,1756.8,1756.6,0.12682582]
[1745480596101,5.5594,1756.8,1756.6,0.12682582]
[1745480596432,5.5594,1756.8,1756.4,0.8039]
[1745480596633,5.5594,1756.8,1756.7,0.12682582]
[1745480596932,0.7751,1756.7,1756.2,0.7594]
[1745480597132,6.46773617,1756.7,1756.2,0.7594]
[1745480597438,8.23967568,1756.7,1756.2,0.7594]
[1745480597744,8.23967568,1756.7,1756.3,0.12682582]
[1745480598546,5.69297816,1756.6,1756.3,0.12682582]
[1745480598696,5.69285474,1756.6,1756.1,0.05]
[1745480599006,8.23974171,1756.7,1756.2,0.12682582]
[1745480599203,2.54703951,1756.7,1756.3,0.8097]
[1745480599545,8.23955971,1756.7,1756.4,0.12682582]
[1745480599731,5.69282682,1756.6,1756.3,0.8097]
[1745480599900,5.69282682,1756.6,1756.4,0.12682582]
[1745480600101,5.69282682,1756.6,1756.3,0.8097]
[1745480600407,5.69282682,1756.6,1756.4,0.12940374]
[1745480600608,7.08606466,1756.6,1756.3,0.8097]
[1745480600819,7.08606466,1756.6,1756.4,0.12940374]
[1745480601015,1.39323784,1756.6,1756.1,1.62216314]
[1745480601218,1.39323784,1756.6,1756.2,0.12940374]
[1745480601431,8.23972725,1756.7,1756.2,0.12940374]
[1745480601643,2.54703951,1756.7,1756.2,0.12940374]
[1745480601908,23.32538102,1757.1,1756.7,5.69228114]
[1745480602055,3.77088102,1757.1,1757.0,0.74616314]
[1745480602255,3.77088102,1757.1,1757.0,1.51286314]
[1745480602633,3.77088102,1757.1,1757.0,1.64314589]
[1745480605535,3.77088102,1757.1,1757.0,0.13028275]
[1745480605973,9.83916484,1757.1,1757.0,0.13028275]
[1745480606173,9.83916484,1757.1,1756.6,0.74616314]
[1745480606472,0.8005,1756.9,1756.5,0.8165]
[1745480606670,5.8615,1756.9,1756.5,1.56266314]
[1745480607072,7.01681965,1756.9,1756.5,0.74616314]
[1745480607793,12.70870944,1756.9,1756.5,0.74616314]
[1745480607956,7.01681965,1756.9,1756.5,0.74616314]
[1745480609086,12.70885777,1756.9,1756.5,0.74616314]
[1745480609253,18.40100791,1756.9,1756.3,1.49896314]
[1745480609583,7.53231924,1756.8,1756.3,1.49896314]
[1745480609770,1.84010079,1756.8,1756.3,1.49896314]
[1745480610544,5.8615,1756.9,1756.5,0.74616314]
[1745480612160,11.55335696,1756.9,1756.5,0.74616314]
[1745480612572,5.8615,1756.9,1756.6,0.12805608]
[1745480613593,11.55335096,1756.9,1756.6,0.12805608]
[1745480613749,5.8615,1756.9,1756.6,0.12805608]
[1745480613948,7.01682272,1756.9,1756.6,0.12805608]
[1745480614653,7.01682272,1756.9,1756.5,0.74616314]
[1745480614855,7.01682272,1756.9,1756.7,0.12805608]
[1745480615178,7.01682272,1756.9,1756.8,0.12805608]
[1745480615499,7.01682272,1756.9,1756.5,0.74616314]
[1745480615955,7.01682272,1756.9,1756.6,0.12782172]
[1745480618180,5.8615,1756.9,1756.6,0.12782172]
[1745480620697,19.07907381,1757.3,1756.7,6.43854252]
[1745480620897,23.843,1757.3,1757.0,0.74616314]
[1745480621098,23.843,1757.3,1757.2,0.74616314]
[1745480621612,23.843,1757.3,1757.2,0.12747021]
[1745480621769,23.843,1757.3,1757.0,0.74616314]
[1745480621953,23.843,1757.3,1757.2,0.12747021]
[1745480622161,23.843,1757.3,1757.0,0.74616314]
[1745480622389,23.843,1757.3,1757.2,0.12747021]
[1745480622590,23.843,1757.3,1757.0,1.38994812]
[1745480622799,23.843,1757.3,1757.2,0.12747021]
[1745480623092,5.061,1757.3,1757.2,0.74616314]
[1745480623295,5.061,1757.3,1757.2,0.86847868]
[1745480624092,0.8027,1757.6,1757.2,1.6072488]
[1745480624420,5.8637,1757.6,1757.2,0.86847868]
[1745480625564,5.68995892,1757.5,1757.2,0.12231554]
[1745480625910,11.55334377,1757.6,1757.2,0.12231554]
[1745480626206,5.061,1757.6,1757.2,6.43698076]
[1745480626372,11.51140701,1757.6,1757.3,0.12225698]
[1745480626587,1.1511407,1757.5,1757.0,1.50606314]
[1745480626915,11.51140701,1757.6,1757.4,0.12225698]
[1745480627073,11.51140701,1757.6,1757.0,1.50606314]
[1745480627274,11.51140701,1757.6,1757.5,0.12225698]
[1745480627473,11.51140701,1757.6,1757.0,1.50606314]
[1745480627802,11.51140701,1757.6,1757.1,0.12225698]
[1745480628001,5.8217,1757.6,1757.1,0.12225698]
[1745480628231,5.061,1757.6,1757.2,0.74616314]
[1745480628405,5.061,1757.6,1757.3,0.819]
[1745480628701,5.061,1757.6,1757.3,0.94049576]
[1745480629000,5.061,1757.6,1757.3,0.12149576]
[1745480629198,16.44051342,1757.6,1757.3,0.12149576]
[1745480629401,0.7873,1757.4,1757.1,0.8215]
[1745480631006,5.68993048,1757.5,1757.1,0.8215]
[1745480631161,5.68993048,1757.5,1757.0,0.74616314]
[1745480631899,5.68990042,1757.5,1757.0,0.74616314]
[1745480632135,5.8807,1757.6,1757.0,6.43766553]
[1745480632319,12.72729727,1757.6,1757.0,2.03736925]
[1745480632829,12.72729727,1757.6,1757.0,7.72881892]
[1745480633543,12.72729727,1757.6,1757.0,2.03736925]
[1745480634735,7.03771302,1757.6,1757.0,7.7288629]
[1745480634897,12.72729401,1757.6,1757.0,2.03736925]
[1745480635107,18.41718483,1757.6,1757.0,2.03736925]
[1745480635300,12.72729401,1757.6,1757.0,2.03736925]
[1745480635997,5.69073051,1757.3,1756.9,0.7827]
[1745480636208,0.7589,1757.3,1756.9,0.7827]
[1745480636496,5.011,1757.2,1756.9,0.7827]
[1745480637128,5.011,1757.2,1756.9,6.47452893]
[1745480639008,5.011,1757.2,1757.0,6.43752013]
[1745480639308,5.011,1757.2,1757.1,0.64375201]
[1745480639936,5.011,1757.2,1757.0,0.74616314]
[1745480640874,5.011,1757.2,1757.1,5.69119572]
[1745480641079,5.011,1757.4,1757.1,0.7594]
[1745480641283,5.011,1757.6,1757.3,1.50556314]
[1745480641570,5.011,1757.6,1757.4,5.69011789]
[1745480641775,5.011,1757.6,1757.5,7.76447535]
[1745480642536,5.011,1757.6,1757.5,7.88421464]
[1745480642737,3.77088102,1757.8,1757.5,7.88421464]
[1745480643339,3.77088102,1757.8,1757.5,2.19431422]
[1745480643765,3.77088102,1757.8,1757.7,7.26111614]
[1745480643964,3.77088102,1757.8,1757.7,8.55618307]
[1745480644266,3.77088102,1757.8,1757.7,8.67416646]
[1745480645056,3.77088102,1757.8,1757.7,2.98491346]
[1745480645251,3.77088102,1757.8,1757.7,8.67416646]
[1745480645655,5.011,1758.2,1757.8,0.801]
[1745480645856,5.011,1758.2,1758.1,0.801]
[1745480646031,5.011,1758.2,1757.9,5.68843874]
[1745480646032,5.011,1758.2,1757.9,0.91798865]
[1745480646231,5.011,1758.2,1757.9,0.801]
[1745480646531,5.011,1758.2,1758.0,0.11698865]
[1745480648598,5.011,1758.2,1758.1,0.11189718]
[1745480648892,5.011,1758.2,1757.8,7.24732081]
[1745480649091,5.011,1758.2,1758.1,0.11178018]
[1745480649596,5.011,1758.2,1757.8,7.24732081]
[1745480649757,5.011,1758.2,1758.1,0.11178018]
[1745480650086,5.011,1758.2,1757.8,1.55846314]
[1745480650287,5.011,1758.2,1758.1,0.11160469]
[1745480650492,0.7629,1758.1,1757.8,0.74616314]
[1745480651780,5.011,1758.2,1757.8,6.43495498]
[1745480652365,4.99804257,1758.2,1757.8,6.43495498]
[1745480652616,4.99804257,1758.2,1758.0,6.43428269]
[1745480652919,4.99804257,1758.2,1758.0,6.43421748]
[1745480653123,4.99804257,1758.2,1758.1,6.33138034]
[1745480653325,5.009,1758.5,1758.2,6.47762291]
[1745480653504,5.30600377,1758.6,1758.3,6.43345201]
[1745480653811,5.009,1758.6,1758.3,0.74616314]
[1745480653971,5.009,1758.6,1758.2,0.79]
[1745480654172,5.8028,1758.6,1758.2,1.57673591]
[1745480654614,5.8028,1758.6,1758.1,2.20228489]
[1745480655115,5.8028,1758.6,1758.1,7.89023724]
[1745480655618,5.8028,1758.6,1758.2,5.68762112]
[1745480655919,18.777,1758.7,1758.2,5.68753202]
[1745480656067,5.009,1758.6,1758.2,5.68753202]
[1745480656272,5.009,1758.6,1758.3,0.5687532]
[1745480656584,5.009,1758.6,1758.1,7.89002459]
[1745480657014,0.7552,1758.5,1758.1,2.20228489]
[1745480657616,0.7552,1758.5,1758.2,0.10985007]
[1745480657806,0.7552,1758.5,1758.1,2.20228489]
[1745480658008,0.7552,1758.5,1758.3,0.10985007]
[1745480658171,0.7552,1758.5,1758.1,2.20228489]
[1745480658386,0.7552,1758.5,1758.4,0.10985007]
[1745480658707,0.7552,1758.5,1758.1,2.20228489]
[1745480658901,0.7552,1758.5,1758.4,0.10985007]
[1745480659104,0.7552,1758.5,1758.1,7.89023792]
[1745480659416,0.7552,1758.5,1758.2,0.78902379]
[1745480659619,0.7552,1758.5,1758.2,0.10985007]
[1745480659789,0.7552,1758.5,1758.1,2.20228489]
[1745480659991,5.009,1758.6,1758.3,0.10985007]
[1745480660191,5.009,1758.6,1758.5,0.74616314]
[1745480660390,0.7759,1758.7,1758.5,0.74616314]
[1745480660391,5.8117,1758.9,1758.5,1.55756314]
[1745480660798,5.8117,1758.9,1758.6,0.10873866]
[1745480661918,6.96137789,1758.9,1758.6,0.10873866]
[1745480662685,12.6467702,1758.9,1758.6,0.10873866]
[1745480662917,6.96137789,1758.9,1758.6,0.10873866]
[1745480663624,5.68593821,1758.8,1758.6,0.10873866]
[1745480663924,12.64692508,1758.9,1758.3,1.51426314]
[1745480664125,12.64692508,1758.9,1758.3,2.23443492]
[1745480664424,12.64692508,1758.9,1758.1,0.7806]
[1745480664425,5.68645824,1758.6,1758.1,0.7806]
[1745480664728,5.008,1758.5,1758.1,0.7806]
[1745480665839,5.008,1758.5,1758.4,1.56996314]
[1745480666017,5.008,1758.5,1758.4,2.29569008]
[1745480667421,5.8318,1758.5,1758.0,0.8289]
[1745480667824,5.8318,1758.5,1758.0,6.5171485]
[1745480668330,5.8318,1758.5,1758.0,0.8289]
[1745480668843,5.008,1758.5,1758.2,0.8149]
[1745480670998,5.008,1758.5,1758.1,0.8236]
[1745480671222,0.7525,1758.4,1758.0,1.46705502]
[1745480672011,5.7796,1758.5,1758.0,1.46705502]
[1745480672210,5.7796,1758.5,1758.1,0.74616314]
[1745480672431,5.008,1758.5,1758.1,6.43396607]
[1745480672734,5.008,1758.5,1758.3,0.8018]
[1745480672940,11.45116169,1758.5,1758.2,0.10663349]
[1745480673092,11.45116169,1758.5,1758.0,0.74616314]
[1745480673302,11.45116169,1758.5,1758.3,0.1062242]
[1745480673303,6.44373651,1758.4,1758.3,0.1062242]
[1745480673507,5.68753326,1758.3,1757.8,1.55566314]
[1745480673747,11.37512692,1758.3,1757.8,1.55566314]
[1745480674016,11.37512002,1758.3,1757.8,1.55566314]
[1745480674309,6.44729639,1758.2,1757.6,1.51726314]
[1745480674507,6.90071526,1758.3,1757.4,0.7549]
[1745480674508,5.68866564,1757.9,1757.4,0.7549]
[1745480674722,6.4492808,1758.0,1757.4,0.7549]
[1745480674907,0.7608,1757.9,1757.3,0.74616314]
[1745480675110,6.44962504,1757.9,1757.3,0.74616314]
[1745480675306,0.7608,1757.9,1757.3,0.74616314]
[1745480675549,0.7608,1757.6,1757.2,3.7549]
[1745480675845,5.7518,1757.6,1757.3,0.37549]
[1745480676021,5.7518,1757.6,1757.3,1.12165314]
[1745480676425,5.7518,1757.6,1757.3,0.37549]
[1745480676750,5.7518,1757.6,1757.2,0.7549]
[1745480678045,4.991,1757.6,1757.3,0.74616314]
[1745480678246,4.991,1757.6,1757.3,6.43658757]
[1745480678454,4.991,1757.6,1757.3,0.74616314]
[1745480679016,4.991,1757.6,1757.3,6.43644174]
[1745480679227,4.991,1757.6,1757.3,0.74616314]
[1745480679431,4.991,1757.6,1757.3,6.43669508]
[1745480679640,4.991,1757.6,1757.4,0.64366951]
[1745480679848,4.991,1757.6,1757.5,0.74616314]
[1745480680853,4.991,1757.6,1757.3,0.74616314]
[1745480682839,4.991,1757.6,1757.3,6.43646877]
[1745480683149,4.992,1757.9,1757.6,5.6894017]
[1745480683350,4.992,1758.0,1757.7,1.31510331]
[1745480684353,4.992,1758.0,1757.7,0.74616314]
[1745480685357,4.992,1758.0,1757.9,0.74616314]
[1745480685919,4.992,1758.0,1757.8,0.8278]
[1745480687017,4.992,1758.0,1757.6,3.74616314]
[1745480687454,4.992,1758.0,1757.6,15.12503534]
[1745480687653,4.992,1758.0,1757.7,1.51250353]
[1745480688256,0.7958,1757.9,1757.6,0.74616314]
[1745480688672,0.7958,1757.9,1757.5,0.8014]
[1745480688971,0.7958,1757.9,1757.6,0.74616314]
[1745480692362,4.992,1758.0,1757.6,6.43568216]
[1745480692560,4.992,1758.0,1757.8,0.74616314]
[1745480692765,4.992,1758.0,1757.8,1.57146314]
[1745480693478,4.992,1758.0,1757.8,0.74616314]
[1745480694661,4.992,1758.0,1757.6,1.55046314]
[1745480695979,0.7945,1757.9,1757.4,1.50866314]
[1745480696138,6.48310611,1757.9,1757.4,1.50866314]
[1745480696653,6.48310611,1757.9,1757.4,0.74616314]
[1745480696853,5.68897045,1757.8,1757.3,0.7625]
[1745480697054,0.7945,1757.6,1757.1,3.7625]
[1745480697281,5.7945,1757.6,1757.1,3.7625]
[1745480697445,5.0,1757.6,1757.3,0.7625]
[1745480697642,5.0,1757.6,1757.4,0.74616314]
[1745480698878,5.0,1757.6,1757.2,1.50866314]
[1745480699046,5.0,1757.6,1757.2,2.52862963]
[1745480699246,5.0,1757.6,1757.2,8.21944334]
[1745480699546,5.0,1757.6,1757.4,0.74616314]
[1745480700256,5.0,1757.6,1757.2,8.21944334]
[1745480700574,5.0,1757.6,1757.2,8.219259]
[1745480700754,5.0,1757.6,1757.3,0.8219259]
[1745480701075,5.0,1757.6,1757.4,0.74616314]
[1745480701386,5.0,1757.6,1757.3,0.8219259]
[1745480701558,5.0,1757.6,1757.1,3.8045]
[1745480701759,0.8005,1757.0,1756.4,2.07894507]
[1745480701944,0.8005,1756.8,1756.3,0.74616314]
[1745480702274,5.001,1756.7,1756.3,0.74616314]
[1745480702477,5.001,1756.7,1756.5,0.74616314]
[1745480703056,0.53084672,1756.8,1756.5,1.55816314]
[1745480703388,0.53084672,1756.8,1756.5,2.28330099]
[1745480703586,0.53084672,1756.9,1756.5,1.55816314]
[1745480704201,6.22274603,1756.9,1756.5,1.55816314]
[1745480704504,0.53084672,1756.9,1756.4,0.74616314]
[1745480704703,0.53084672,1756.9,1756.2,0.74616314]
[1745480704704,5.69270674,1756.7,1756.2,0.74616314]
[1745480704878,5.001,1756.6,1756.2,0.74616314]
[1745480705281,5.001,1756.6,1756.1,0.8193]
[1745480705485,0.8166,1756.5,1756.1,0.05]
[1745480707140,6.50987261,1756.5,1756.1,0.05]
[1745480707685,5.69348479,1756.4,1756.1,0.05]
[1745480708207,5.69393806,1756.3,1756.1,0.05]
[1745480708367,5.69361175,1756.4,1756.1,0.05]
[1745480708564,6.91395903,1756.4,1756.1,0.05]
[1745480708981,5.69390819,1756.3,1756.1,0.05]
[1745480709177,5.002,1756.2,1756.1,0.05]
[1745480710585,5.002,1756.2,1756.1,5.74443653]
[1745480710794,5.002,1756.2,1756.1,6.52623653]
[1745480710995,5.003,1756.5,1756.1,10.91538707]
[1745480711215,5.003,1756.6,1756.3,3.69632265]
[1745480711409,5.003,1756.6,1756.3,9.38995337]
[1745480711611,5.8335,1756.9,1756.5,9.38946241]
[1745480711919,11.52534602,1756.9,1756.4,0.7818]
[1745480712128,12.67788062,1756.9,1756.2,12.21746546]
[1745480712415,12.67807525,1756.9,1756.2,6.52349226]
[1745480712615,12.67807525,1756.9,1756.2,6.5234868]
[1745480712802,12.67807525,1756.9,1756.3,0.10856321]
[1745480713307,12.67807525,1756.9,1756.3,5.80223022]
[1745480713637,0.8039,1756.7,1756.3,0.10856321]
[1745480713803,6.49662912,1756.7,1756.1,0.05]
[1745480713984,6.49662912,1756.7,1756.2,0.11897213]
[1745480714336,5.69281566,1756.6,1756.2,0.11897213]
[1745480714485,5.003,1756.5,1756.2,0.11897213]
[1745480714884,6.07258157,1756.5,1756.2,0.11897213]
[1745480715084,0.7717,1756.4,1756.2,0.11897213]
[1745480717408,6.46520061,1756.4,1756.2,0.11897213]
[1745480717708,0.7717,1756.4,1756.2,0.11897213]
[1745480718092,6.46521244,1756.4,1756.2,0.11897213]
[1745480718431,5.69378807,1756.3,1756.2,0.11897213]
[1745480718611,0.7717,1756.4,1756.2,0.11897213]
[1745480718612,6.46534474,1756.4,1756.2,0.11897213]
[1745480718910,2.48786471,1756.4,1756.2,0.11897213]
[1745480721154,0.7717,1756.4,1756.2,0.11897213]
[1745480721300,5.003,1756.5,1756.2,0.11897213]
[1745480721494,5.003,1756.5,1756.3,9.39009499]
[1745480721832,5.7621,1756.8,1756.4,6.4910639]
[1745480722140,5.7621,1756.8,1756.4,2.39776088]
[1745480722379,5.7621,1756.8,1756.5,0.12061141]
[1745480724594,5.004,1756.8,1756.5,0.12061141]
[1745480725574,10.69636478,1756.8,1756.5,0.12061141]
[1745480725777,5.69281566,1756.6,1756.5,0.12061141]
[1745480726079,5.69315094,1756.5,1756.1,0.05]
[1745480726232,5.8953,1756.4,1756.1,0.05]
[1745480726440,6.42446615,1756.4,1756.2,0.12061141]
[1745480726870,12.11802534,1756.4,1756.2,0.12061141]
[1745480727078,5.69378807,1756.3,1756.2,0.12061141]
[1745480727287,7.47496941,1756.3,1756.2,0.12061141]
[1745480727472,8.79183556,1756.3,1756.2,0.12061141]
[1745480727680,5.69411228,1756.2,1756.0,0.4037869]
[1745480727879,5.69540949,1755.8,1755.7,2.11538272]
[1745480728181,6.4953073,1755.4,1755.1,0.05]
[1745480728383,6.07377931,1754.3,1754.1,1.91781076]
[1745480728539,5.4505,1754.3,1754.1,1.91781076]
[1745480728739,5.4505,1754.6,1754.1,1.91781076]
[1745480729053,0.3735,1754.6,1754.1,5.61413341]
[1745480729398,5.078,1754.7,1754.2,7.53793258]
[1745480729542,0.52911123,1754.7,1754.4,3.69632265]
[1745480729938,0.52911123,1754.7,1754.2,5.53380158]
[1745480730167,5.69983674,1754.5,1754.2,1.2356869]
[1745480730368,0.890158,1755.0,1754.2,1.2356869]
[1745480730369,8.078,1754.8,1754.2,1.2356869]
[1745480730688,14.3057858,1754.8,1754.2,1.2356869]
[1745480730840,0.52911123,1754.8,1754.4,3.69632265]
[1745480731182,1.35891123,1754.8,1754.2,1.2356869]
[1745480731336,5.9078,1754.8,1754.2,0.4037869]
[1745480732072,11.60649473,1754.8,1754.2,1.20603687]
[1745480732245,5.9078,1754.8,1754.2,0.4037869]
[1745480732446,5.078,1754.8,1754.4,5.6999318]
[1745480732783,0.890158,1755.0,1754.5,5.69943826]
[1745480733281,0.890158,1755.0,1754.6,5.83393198]
[1745480733483,0.890158,1755.0,1754.6,5.83391516]
[1745480733682,5.9062,1755.1,1754.7,5.6989757]
[1745480733882,5.08,1755.1,1754.8,5.69844742]
[1745480734086,5.08,1755.1,1754.8,0.13479439]
[1745480734298,5.845,1755.6,1755.1,5.69750168]
[1745480734500,5.845,1755.6,1755.0,5.6979706]
[1745480734651,5.845,1755.6,1755.2,0.14235578]
[1745480734850,12.0679704,1755.6,1754.9,10.20619515]
[1745480735049,12.0679704,1755.6,1755.3,0.14235578]
[1745480735252,5.845,1755.6,1755.0,5.69796438]
[1745480735598,11.5410943,1755.6,1755.4,0.14235578]
[1745480735805,11.5410943,1755.6,1754.9,10.20629312]
[1745480735806,5.69639642,1755.5,1754.9,0.8118]
[1745480735953,14.54110948,1755.6,1755.5,0.14235578]
[1745480736273,9.37196109,1755.6,1754.6,0.8071]
[1745480736612,9.37196109,1755.6,1754.6,6.95654941]
[1745480736613,0.7869,1755.2,1754.6,6.95654941]
[1745480737253,5.8669,1755.2,1754.6,6.95654941]
[1745480737686,11.5642649,1755.2,1754.6,1.25744227]
[1745480737889,11.5642649,1755.2,1754.6,0.8071]
[1745480738255,6.69632265,1755.1,1754.2,0.4037869]
[1745480738449,0.7588,1754.6,1754.2,0.4037869]
[1745480738656,5.081,1754.5,1754.2,0.4037869]
[1745480739352,10.78065062,1754.5,1754.2,0.4037869]
[1745480739598,5.081,1754.5,1754.2,0.4037869]
[1745480740482,10.78064973,1754.5,1754.2,0.4037869]
[1745480741094,8.70060426,1754.2,1754.1,1.91781076]
[1745480741291,3.0,1754.2,1754.1,1.91781076]
[1745480741614,0.52590809,1754.4,1754.1,1.91781076]
[1745480741770,3.778,1754.7,1754.1,1.91781076]
[1745480741970,3.778,1754.7,1754.1,2.78655032]
[1745480742175,9.47712884,1754.7,1754.1,1.91781076]
[1745480742407,3.778,1754.7,1754.1,1.91781076]
[1745480742608,3.778,1754.7,1754.1,7.61867672]
[1745480743200,0.778,1754.7,1754.1,5.61413341]
[1745480743512,10.9997803,1754.8,1754.2,0.56141334]
[1745480743896,5.301,1754.8,1754.1,1.91781076]
[1745480744217,0.8144,1754.5,1754.1,1.91781076]
[1745480744376,5.302,1754.4,1754.1,1.91781076]
[1745480744571,11.00200204,1754.4,1754.2,0.12670735]
[1745480744910,5.302,1754.4,1754.1,1.91781076]
[1745480745215,11.0019544,1754.4,1754.3,0.12705878]
[1745480745410,5.70060426,1754.2,1754.1,1.91781076]
[1745480745612,6.49340426,1754.2,1754.1,1.91781076]
[1745480745822,8.70092925,1754.1,1754.0,0.31353306]
[1745480746276,6.4943731,1754.0,1753.3,0.02992868]
[1745480746483,5.70274335,1753.6,1753.3,0.02992868]
[1745480746681,14.79654583,1753.9,1753.3,0.02992868]
[1745480747001,11.79654583,1753.9,1753.3,0.80122868]
[1745480747233,6.0948,1753.9,1753.3,1.48372184]
[1745480747405,11.79661895,1753.9,1753.3,1.48372184]
[1745480747705,11.79661895,1753.9,1753.4,5.83388938]
[1745480747706,5.302,1753.9,1753.4,5.83388938]
[1745480747886,5.302,1753.9,1753.4,3.82724868]
[1745480748088,5.302,1753.9,1753.5,5.70272855]
[1745480748300,5.302,1753.9,1753.4,1.10142864]
[1745480748503,5.302,1753.9,1753.6,0.13092603]
[1745480748705,5.303,1754.2,1753.7,6.51703492]
[1745480748907,5.303,1754.2,1753.7,0.8151]
[1745480749114,5.303,1754.2,1753.8,0.13057434]
[1745480749790,5.70104603,1754.1,1753.8,0.13057434]
[1745480749996,0.8275,1754.0,1753.8,0.13057434]
[1745480750323,12.23048519,1754.0,1753.3,6.53484424]
[1745480750511,0.8275,1754.0,1753.9,0.12998824]
[1745480750722,5.70162557,1753.9,1753.3,0.83152868]
[1745480750892,5.303,1753.8,1753.3,0.83152868]
[1745480751092,5.303,1753.8,1753.4,5.70300624]
[1745480751515,5.303,1753.8,1753.3,5.21339483]
[1745480752131,5.303,1753.8,1753.4,5.70289207]
[1745480752295,5.303,1754.1,1753.5,5.70265677]
[1745480752634,5.303,1754.1,1753.5,3.69632265]
[1745480752804,5.303,1754.1,1753.8,6.46438818]
[1745480753010,18.803,1754.3,1753.9,5.70137522]
[1745480753694,18.803,1754.3,1754.0,5.70108544]
[1745480753895,5.303,1754.4,1753.9,9.39766561]
[1745480754135,5.303,1754.4,1753.3,5.7333449]
[1745480754136,5.70152942,1754.0,1753.3,5.7333449]
[1745480754433,11.82368646,1753.9,1753.3,0.66480361]
[1745480754640,6.1219,1753.9,1753.3,0.02992868]
[1745480754795,5.70211391,1753.8,1753.3,0.02992868]
[1745480755094,11.82366117,1753.9,1753.3,0.02992868]
[1745480755299,5.70240331,1753.7,1753.3,0.02992868]
[1745480755737,6.23017976,1753.8,1753.3,0.02992868]
[1745480756239,0.52810082,1753.8,1753.3,0.02992868]
[1745480756398,5.70222957,1753.7,1753.3,0.02992868]
[1745480756740,6.1219,1753.9,1753.3,0.02992868]
[1745480757305,5.70202642,1753.8,1753.3,0.02992868]
[1745480757720,5.70190443,1753.8,1753.3,0.02992868]
[1745480757924,0.52810082,1753.7,1753.3,0.02992868]
[1745480758150,5.7032052,1753.4,1753.3,0.02992868]
[1745480758301,12.00218391,1753.4,1753.2,0.32007576]
[1745480758500,6.2988,1753.4,1753.3,0.12031899]
[1745480758700,6.82690082,1753.4,1753.2,0.32007576]
[1745480758902,12.53033507,1753.4,1753.3,0.12031899]
[1745480759341,12.53033507,1753.4,1753.2,0.32007576]
[1745480759511,6.2316313,1753.3,1753.2,0.32007576]
[1745480759906,0.52810082,1753.3,1753.2,0.32007576]
[1745480760840,0.52810082,1753.4,1753.3,5.70353048]
[1745480760998,0.52810082,1753.4,1753.3,7.10854004]
[1745480761201,1.31930082,1754.2,1753.5,5.70267893]
[1745480761501,1.04843147,1754.2,1753.8,5.7017726]
[1745480761700,1.04843147,1754.2,1753.7,5.70201691]
[1745480761902,0.52033065,1754.2,1753.9,5.70137127]
[1745480762098,0.52033065,1754.2,1754.1,5.70092925]
[1745480762337,3.77088102,1754.7,1754.6,5.69930468]
[1745480762842,3.77088102,1754.7,1754.6,0.10513764]
[1745480763226,3.77088102,1754.7,1754.2,5.70042062]
[1745480763429,3.77088102,1754.7,1754.3,0.57004206]
[1745480763633,3.77088102,1754.7,1754.3,5.70027397]
[1745480763834,3.77088102,1754.7,1754.3,0.8071]
[1745480764220,3.77088102,1754.7,1754.3,6.50736252]
[1745480764423,3.77088102,1754.7,1754.4,5.69978239]
[1745480764628,3.77088102,1754.7,1754.4,5.69978675]
[1745480764843,3.77088102,1754.7,1754.3,0.8071]
[1745480765344,3.77088102,1754.7,1754.3,6.50714896]
[1745480765737,3.77088102,1754.7,1754.3,0.8071]
[1745480766851,3.77088102,1754.7,1754.4,5.6998548]
[1745480767035,3.77088102,1754.7,1754.6,5.69930468]
[1745480767821,3.77088102,1754.7,1754.6,6.49990468]
[1745480768039,3.77088102,1754.7,1754.6,9.49990468]
[1745480768615,5.524,1755.6,1755.0,5.69771484]
[1745480768843,5.524,1755.6,1755.0,5.69785999]
[1745480769047,5.524,1755.6,1755.1,5.69753595]
[1745480769249,5.524,1755.6,1754.8,0.8329]
[1745480769752,0.7964,1755.3,1754.7,5.69883073]
[1745480769958,6.3194,1755.3,1754.7,5.69875421]
[1745480770255,6.3194,1755.3,1754.8,5.69864698]
[1745480770461,6.3194,1755.3,1754.7,5.69890984]
[1745480770820,6.3194,1755.3,1754.8,5.69864708]
[1745480771019,6.3194,1755.3,1754.7,11.39749929]
[1745480771223,6.3194,1755.3,1754.7,5.69872179]
[1745480771532,6.3194,1755.3,1754.7,11.39747695]
[1745480771740,6.3194,1755.3,1754.7,5.69872179]
[1745480772334,6.3194,1755.3,1754.8,5.6986464]